[Event "Titled Tuesday Blitz July 11 Early 2023"]
[White "Keleberda, Tymur"]
[Black "DeyanKostov"]
[WhiteFideId "14174294"]
[WhiteElo "2498"]
[BlackElo "2326"]
[Result "1-0"]
[Round "4"]
[TimeControl "180+2"]
[Date "2023.07.11"]
[WhiteClock "0:00:05"]
[BlackClock "0:00:04"]
[Board "155"]

1. d4 {[%clk 0:03:00]}  d5 {[%clk 0:02:59]} 2. Nc3 {[%clk 0:02:59]}  Nf6 {[%clk 0:02:59]} 3. Bf4 {[%clk 0:02:59]}  e6 {[%clk 0:02:59]} 4. e3 {[%clk 0:02:59]}  Bd6 {[%clk 0:02:59]} 5. Nge2 {[%clk 0:02:53]}  O-O {[%clk 0:02:57]} 6. Nb5 {[%clk 0:02:50]}  Bxf4 {[%clk 0:02:52]} 7. Nxf4 {[%clk 0:02:51]}  a6 {[%clk 0:02:49]} 8. Na3 {[%clk 0:02:51]}  c5 {[%clk 0:02:46]} 9. c3 {[%clk 0:02:50]}  Qc7 {[%clk 0:02:43]} 10. dxc5 {[%clk 0:02:47]}  Qxc5 {[%clk 0:02:41]} 11. Be2 {[%clk 0:02:44]}  Nc6 {[%clk 0:02:38]} 12. O-O {[%clk 0:02:42]}  e5 {[%clk 0:02:38]} 13. Nd3 {[%clk 0:02:41]}  Qe7 {[%clk 0:02:37]} 14. Nc2 {[%clk 0:02:41]}  Bf5 {[%clk 0:02:36]} 15. Ncb4 {[%clk 0:02:41]}  Nxb4 {[%clk 0:02:35]} 16. Nxb4 {[%clk 0:02:41]}  Rfd8 {[%clk 0:02:34]} 17. a4 {[%clk 0:02:32]}  d4 {[%clk 0:02:27]} 18. exd4 {[%clk 0:02:24]}  exd4 {[%clk 0:02:27]} 19. Re1 {[%clk 0:02:24]}  dxc3 {[%clk 0:02:25]} 20. Qb3 {[%clk 0:02:25]}  cxb2 {[%clk 0:02:22]} 21. Qxb2 {[%clk 0:02:26]}  a5 {[%clk 0:01:59]} 22. Na2 {[%clk 0:02:26]}  Re8 {[%clk 0:01:45]} 23. h3 {[%clk 0:02:19]}  Rac8 {[%clk 0:01:44]} 24. Qd2 {[%clk 0:02:05]}  Rc2 {[%clk 0:01:41]} 25. Qg5 {[%clk 0:02:05]}  Bg6 {[%clk 0:01:22]} 26. Bf1 {[%clk 0:01:54]}  Qxe1 {[%clk 0:01:15]} 27. Rxe1 {[%clk 0:01:53]}  Rxe1 {[%clk 0:01:16]} 28. Qxa5 {[%clk 0:01:54]}  Re8 {[%clk 0:01:00]} 29. Bb5 {[%clk 0:01:40]}  Rxa2 {[%clk 0:00:49]} 30. Bxe8 {[%clk 0:01:40]}  Nxe8 {[%clk 0:00:50]} 31. Qe5 {[%clk 0:01:39]}  f6 {[%clk 0:00:48]} 32. Qb5 {[%clk 0:01:32]}  Bf7 {[%clk 0:00:43]} 33. a5 {[%clk 0:01:32]}  h6 {[%clk 0:00:41]} 34. Qb6 {[%clk 0:01:30]}  Kh7 {[%clk 0:00:35]} 35. Qxb7 {[%clk 0:01:29]}  Kg8 {[%clk 0:00:31]} 36. Qb6 {[%clk 0:01:29]}  Bc4 {[%clk 0:00:28]} 37. Qc6 {[%clk 0:01:25]}  Bf7 {[%clk 0:00:26]} 38. a6 {[%clk 0:01:26]}  f5 {[%clk 0:00:16]} 39. Qb6 {[%clk 0:01:24]}  Nf6 {[%clk 0:00:14]} 40. a7 {[%clk 0:01:23]}  Kh7 {[%clk 0:00:14]} 41. Qb7 {[%clk 0:01:21]}  Bd5 {[%clk 0:00:14]} 42. Qb8 {[%clk 0:01:19]}  Ra1+ {[%clk 0:00:13]} 43. Kh2 {[%clk 0:01:18]}  Ra2 {[%clk 0:00:13]} 44. Qb6 {[%clk 0:01:17]}  Kg6 {[%clk 0:00:11]} 45. Kg3 {[%clk 0:01:08]}  Kh7 {[%clk 0:00:10]} 46. f3 {[%clk 0:01:00]}  Kg6 {[%clk 0:00:10]} 47. h4 {[%clk 0:00:58]}  Kh7 {[%clk 0:00:10]} 48. Kh3 {[%clk 0:00:58]}  Kg6 {[%clk 0:00:09]} 49. Qc5 {[%clk 0:00:50]}  Kh7 {[%clk 0:00:09]} 50. h5 {[%clk 0:00:50]}  Kh8 {[%clk 0:00:05]} 51. Kh4 {[%clk 0:00:43]}  Ra4+ {[%clk 0:00:04]} 52. Kh3 {[%clk 0:00:40]}  Kh7 {[%clk 0:00:05]} 53. Qc7 {[%clk 0:00:35]}  Ra2 {[%clk 0:00:05]} 54. Kh2 {[%clk 0:00:33]}  Nxh5 {[%clk 0:00:05]} 55. Qd7 {[%clk 0:00:33]}  Nf6 {[%clk 0:00:05]} 56. Qxf5+ {[%clk 0:00:33]}  Kg8 {[%clk 0:00:05]} 57. Qc8+ {[%clk 0:00:33]}  Kh7 {[%clk 0:00:06]} 58. Qc7 {[%clk 0:00:16]}  h5 {[%clk 0:00:05]} 59. Kg3 {[%clk 0:00:16]}  Kg6 {[%clk 0:00:05]} 60. Qb6 {[%clk 0:00:15]}  Kh7 {[%clk 0:00:05]} 61. Kf4 {[%clk 0:00:14]}  Rxg2 {[%clk 0:00:04]} 62. Qa5 {[%clk 0:00:12]}  Ra2 {[%clk 0:00:04]} 63. Qxa2 {[%clk 0:00:12]}  Bxa2 {[%clk 0:00:04]} 64. a8=Q {[%clk 0:00:12]}  Bd5 {[%clk 0:00:04]} 65. Qa5 {[%clk 0:00:12]}  Kg6 {[%clk 0:00:04]} 66. Qb6 {[%clk 0:00:11]}  Bf7 {[%clk 0:00:05]} 67. Qb1+ {[%clk 0:00:11]}  Kh6 {[%clk 0:00:05]} 68. Kg3 {[%clk 0:00:11]}  Bg6 {[%clk 0:00:04]} 69. Qb6 {[%clk 0:00:11]}  Kh7 {[%clk 0:00:04]} 70. Qa7 {[%clk 0:00:11]}  Kh6 {[%clk 0:00:04]} 71. Kh4 {[%clk 0:00:09]}  Kh7 {[%clk 0:00:05]} 72. f4 {[%clk 0:00:10]}  Kh6 {[%clk 0:00:05]} 73. Qb6 {[%clk 0:00:09]}  Bf5 {[%clk 0:00:05]} 74. Qb5 {[%clk 0:00:09]}  Bg4 {[%clk 0:00:04]} 75. Qg5+ {[%clk 0:00:08]}  Kh7 {[%clk 0:00:04]} 76. f5 {[%clk 0:00:09]}  Kg8 {[%clk 0:00:05]} 77. Qg6 {[%clk 0:00:09]}  Kf8 {[%clk 0:00:05]} 78. Kg3 {[%clk 0:00:09]}  Ke7 {[%clk 0:00:05]} 79. Kf4 {[%clk 0:00:09]}  Kf8 {[%clk 0:00:05]} 80. Ke5 {[%clk 0:00:09]}  Kg8 {[%clk 0:00:06]} 81. Ke6 {[%clk 0:00:08]}  Be2 {[%clk 0:00:06]} 82. Qf7+ {[%clk 0:00:08]}  Kh7 {[%clk 0:00:06]} 83. Ke7 {[%clk 0:00:08]}  h4 {[%clk 0:00:03]} 84. Kf8 {[%clk 0:00:07]}  Nh5 {[%clk 0:00:04]} 85. Qg8+ {[%clk 0:00:06]}  Kh6 {[%clk 0:00:04]} 86. Qe6+ {[%clk 0:00:07]}  Kg5 {[%clk 0:00:04]} 87. Qxe2 {[%clk 0:00:07]}  h3 {[%clk 0:00:04]} 88. Qe3+ {[%clk 0:00:05]}  Kg4 {[%clk 0:00:03]} 89. Qe2+ {[%clk 0:00:05]}  Kh4 {[%clk 0:00:03]} 90. Qf2+ {[%clk 0:00:05]}  Kg4 {[%clk 0:00:03]} 91. Kf7 {[%clk 0:00:05]}  Nf4 {[%clk 0:00:02]} 92. Kxg7 {[%clk 0:00:04]}  Kxf5 {[%clk 0:00:03]} 93. Qh4 {[%clk 0:00:03]}  Ke4 {[%clk 0:00:03]} 94. Kf6 {[%clk 0:00:03]}  Kf3 {[%clk 0:00:03]} 95. Kf5 {[%clk 0:00:03]}  Kg2 {[%clk 0:00:02]} 96. Qg4+ {[%clk 0:00:02]}  Kf2 {[%clk 0:00:01]} 97. Qxf4+ {[%clk 0:00:02]}  Kg2 {[%clk 0:00:02]} 98. Qg4+ {[%clk 0:00:02]}  Kh2 {[%clk 0:00:02]} 99. Kf4 {[%clk 0:00:02]}  Kh1 {[%clk 0:00:03]} 100. Kf3 {[%clk 0:00:03]}  Kh2 {[%clk 0:00:03]} 101. Qg3+ {[%clk 0:00:03]}  Kh1 {[%clk 0:00:03]} 102. Qxh3+ {[%clk 0:00:04]}  Kg1 {[%clk 0:00:04]} 103. Qg2# {[%clk 0:00:05]} 1-0


[Site "https://www.chess.com"]

[Event "Titled Tuesday Blitz July 11 Early 2023"]
[White "Womacka, Mathias"]
[Black "Samarth J Rao"]
[WhiteFideId "4611390"]
[BlackFideId "46652370"]
[WhiteElo "2495"]
[BlackElo "2324"]
[Result "0-1"]
[Round "4"]
[TimeControl "180+2"]
[Date "2023.07.11"]
[WhiteClock "0:00:24"]
[BlackClock "0:01:15"]
[Board "156"]

1. e4 {[%clk 0:03:00]}  c5 {[%clk 0:02:59]} 2. Nf3 {[%clk 0:03:00]}  e6 {[%clk 0:02:59]} 3. d4 {[%clk 0:03:00]}  cxd4 {[%clk 0:03:00]} 4. Nxd4 {[%clk 0:03:00]}  a6 {[%clk 0:03:00]} 5. Bd3 {[%clk 0:02:59]}  Bc5 {[%clk 0:02:57]} 6. Nb3 {[%clk 0:02:58]}  Ba7 {[%clk 0:02:54]} 7. Qg4 {[%clk 0:02:58]}  Kf8 {[%clk 0:02:50]} 8. Nc3 {[%clk 0:02:53]}  Nc6 {[%clk 0:02:50]} 9. Qg3 {[%clk 0:02:50]}  d6 {[%clk 0:02:47]} 10. Bg5 {[%clk 0:02:33]}  Nge7 {[%clk 0:02:45]} 11. O-O-O {[%clk 0:02:31]}  h6 {[%clk 0:02:25]} 12. Be3 {[%clk 0:02:25]}  Bb8 {[%clk 0:02:24]} 13. f4 {[%clk 0:02:22]}  b5 {[%clk 0:02:20]} 14. Kb1 {[%clk 0:02:20]}  b4 {[%clk 0:02:07]} 15. Na4 {[%clk 0:02:04]}  Bc7 {[%clk 0:02:06]} 16. Qf2 {[%clk 0:02:00]}  Rb8 {[%clk 0:02:01]} 17. e5 {[%clk 0:01:33]}  d5 {[%clk 0:01:56]} 18. g4 {[%clk 0:01:26]}  h5 {[%clk 0:01:54]} 19. h3 {[%clk 0:01:19]}  Bd7 {[%clk 0:01:51]} 20. Nac5 {[%clk 0:01:17]}  a5 {[%clk 0:01:50]} 21. f5 {[%clk 0:01:15]}  Kg8 {[%clk 0:01:43]} 22. fxe6 {[%clk 0:01:07]}  Bxe6 {[%clk 0:01:41]} 23. Nxe6 {[%clk 0:01:06]}  fxe6 {[%clk 0:01:42]} 24. Nc5 {[%clk 0:01:00]}  Qc8 {[%clk 0:01:42]} 25. Rdf1 {[%clk 0:00:59]}  Nxe5 {[%clk 0:01:42]} 26. Bd4 {[%clk 0:00:58]}  N7c6 {[%clk 0:01:38]} 27. Ba6 {[%clk 0:00:35]}  Qe8 {[%clk 0:01:36]} 28. Bb7 {[%clk 0:00:31]}  Nxd4 {[%clk 0:01:29]} 29. Qxd4 {[%clk 0:00:32]}  hxg4 {[%clk 0:01:24]} 30. hxg4 {[%clk 0:00:31]}  Rxh1 {[%clk 0:01:23]} 31. Rxh1 {[%clk 0:00:32]}  Qg6 {[%clk 0:01:21]} 32. Nxe6 {[%clk 0:00:30]}  Rxb7 {[%clk 0:01:16]} 33. Nxc7 {[%clk 0:00:30]}  Rxc7 {[%clk 0:01:15]} 34. Qxe5 {[%clk 0:00:30]}  Qxc2+ {[%clk 0:01:15]} 35. Ka1 {[%clk 0:00:24]}  Qc1+ {[%clk 0:01:15]} 0-1


[Site "https://www.chess.com"]

[Event "Titled Tuesday Blitz July 11 Early 2023"]
[White "Postlmayer, Jakob"]
[Black "Okike, David"]
[WhiteFideId "1643622"]
[BlackFideId "8500134"]
[WhiteElo "2490"]
[BlackElo "2314"]
[Result "1-0"]
[Round "4"]
[TimeControl "180+2"]
[Date "2023.07.11"]
[WhiteClock "0:00:22"]
[BlackClock "0:00:41"]
[Board "158"]

1. e4 {[%clk 0:03:00]}  c5 {[%clk 0:02:59]} 2. Nf3 {[%clk 0:03:00]}  Nc6 {[%clk 0:02:59]} 3. Bb5 {[%clk 0:03:00]}  g6 {[%clk 0:02:59]} 4. O-O {[%clk 0:03:00]}  Bg7 {[%clk 0:02:59]} 5. Re1 {[%clk 0:03:00]}  Nh6 {[%clk 0:02:57]} 6. c3 {[%clk 0:02:54]}  O-O {[%clk 0:02:57]} 7. d4 {[%clk 0:02:53]}  cxd4 {[%clk 0:02:57]} 8. cxd4 {[%clk 0:02:54]}  d5 {[%clk 0:02:57]} 9. exd5 {[%clk 0:02:35]}  Nb4 {[%clk 0:02:54]} 10. Nc3 {[%clk 0:02:24]}  Nf5 {[%clk 0:02:49]} 11. Bc4 {[%clk 0:02:21]}  Nd6 {[%clk 0:02:38]} 12. Bb3 {[%clk 0:02:20]}  a5 {[%clk 0:02:37]} 13. a3 {[%clk 0:02:19]}  Na6 {[%clk 0:02:36]} 14. Bg5 {[%clk 0:02:17]}  f6 {[%clk 0:02:33]} 15. Bf4 {[%clk 0:02:15]}  g5 {[%clk 0:02:32]} 16. Bg3 {[%clk 0:02:08]}  Kh8 {[%clk 0:02:32]} 17. Qe2 {[%clk 0:01:59]}  Nf5 {[%clk 0:02:25]} 18. Rad1 {[%clk 0:01:53]}  Nc7 {[%clk 0:02:16]} 19. h4 {[%clk 0:01:48]}  h6 {[%clk 0:02:10]} 20. hxg5 {[%clk 0:01:48]}  hxg5 {[%clk 0:02:10]} 21. Bh2 {[%clk 0:01:30]}  Ne8 {[%clk 0:02:09]} 22. Bc2 {[%clk 0:01:23]}  Rf7 {[%clk 0:02:05]} 23. Ne4 {[%clk 0:01:12]}  Qxd5 {[%clk 0:01:57]} 24. Nexg5 {[%clk 0:01:11]}  fxg5 {[%clk 0:01:56]} 25. Nxg5 {[%clk 0:01:11]}  Rf6 {[%clk 0:01:53]} 26. Qh5+ {[%clk 0:01:10]}  Nh6 {[%clk 0:01:52]} 27. Qxe8+ {[%clk 0:01:07]}  Rf8 {[%clk 0:01:51]} 28. Qg6 {[%clk 0:00:54]}  Bf5 {[%clk 0:01:52]} 29. Bxf5 {[%clk 0:00:53]}  Qxf5 {[%clk 0:01:52]} 30. Qxf5 {[%clk 0:00:51]}  Rxf5 {[%clk 0:01:52]} 31. Ne6 {[%clk 0:00:47]}  Bf6 {[%clk 0:01:52]} 32. Bg3 {[%clk 0:00:37]}  Rg8 {[%clk 0:01:47]} 33. Re4 {[%clk 0:00:33]}  Kh7 {[%clk 0:01:36]} 34. Rd3 {[%clk 0:00:30]}  Rd5 {[%clk 0:01:35]} 35. Nc7 {[%clk 0:00:26]}  Rd7 {[%clk 0:01:33]} 36. Nb5 {[%clk 0:00:22]}  Nf5 {[%clk 0:01:33]} 37. Be5 {[%clk 0:00:21]}  Rd5 {[%clk 0:01:28]} 38. Nc3 {[%clk 0:00:20]}  Rd7 {[%clk 0:01:26]} 39. Bxf6 {[%clk 0:00:20]}  exf6 {[%clk 0:01:26]} 40. d5 {[%clk 0:00:21]}  Rgd8 {[%clk 0:01:24]} 41. g3 {[%clk 0:00:21]}  Kg6 {[%clk 0:01:24]} 42. Kg2 {[%clk 0:00:21]}  Kf7 {[%clk 0:01:23]} 43. Rf4 {[%clk 0:00:19]}  Ne7 {[%clk 0:01:23]} 44. Rfd4 {[%clk 0:00:18]}  Nf5 {[%clk 0:01:23]} 45. Re4 {[%clk 0:00:18]}  Ne7 {[%clk 0:01:22]} 46. Ra4 {[%clk 0:00:17]}  b6 {[%clk 0:01:22]} 47. Rc4 {[%clk 0:00:16]}  Nxd5 {[%clk 0:01:21]} 48. Nxd5 {[%clk 0:00:17]}  Rxd5 {[%clk 0:01:21]} 49. Rxd5 {[%clk 0:00:18]}  Rxd5 {[%clk 0:01:21]} 50. b4 {[%clk 0:00:18]}  axb4 {[%clk 0:01:21]} 51. Rxb4 {[%clk 0:00:19]}  b5 {[%clk 0:01:20]} 52. Kh3 {[%clk 0:00:20]}  Kg6 {[%clk 0:01:20]} 53. Kg4 {[%clk 0:00:20]}  Rc5 {[%clk 0:01:19]} 54. f4 {[%clk 0:00:19]}  f5+ {[%clk 0:01:19]} 55. Kh3 {[%clk 0:00:19]}  Kf6 {[%clk 0:01:19]} 56. a4 {[%clk 0:00:19]}  bxa4 {[%clk 0:01:19]} 57. Rxa4 {[%clk 0:00:20]}  Rc6 {[%clk 0:01:19]} 58. Ra5 {[%clk 0:00:21]}  Kg6 {[%clk 0:01:19]} 59. Rd5 {[%clk 0:00:20]}  Rb6 {[%clk 0:01:19]} 60. Kg2 {[%clk 0:00:21]}  Ra6 {[%clk 0:01:18]} 61. Rd3 {[%clk 0:00:20]}  Rb6 {[%clk 0:01:11]} 62. Kf3 {[%clk 0:00:21]}  Ra6 {[%clk 0:01:11]} 63. Ke3 {[%clk 0:00:21]}  Re6+ {[%clk 0:01:10]} 64. Kf2 {[%clk 0:00:21]}  Ra6 {[%clk 0:01:10]} 65. Kg2 {[%clk 0:00:21]}  Rb6 {[%clk 0:01:11]} 66. Rd5 {[%clk 0:00:20]}  Ra6 {[%clk 0:01:11]} 67. Rd8 {[%clk 0:00:20]}  Rb6 {[%clk 0:01:09]} 68. Kh3 {[%clk 0:00:21]}  Ra6 {[%clk 0:01:08]} 69. Rg8+ {[%clk 0:00:21]}  Kf7 {[%clk 0:01:06]} 70. Rb8 {[%clk 0:00:20]}  Kg6 {[%clk 0:01:05]} 71. Kh4 {[%clk 0:00:21]}  Rc6 {[%clk 0:00:56]} 72. Rg8+ {[%clk 0:00:20]}  Kf7 {[%clk 0:00:56]} 73. Rg5 {[%clk 0:00:20]}  Kf6 {[%clk 0:00:56]} 74. Kh5 {[%clk 0:00:21]}  Rc1 {[%clk 0:00:55]} 75. Rg6+ {[%clk 0:00:21]}  Kf7 {[%clk 0:00:53]} 76. Kg5 {[%clk 0:00:21]}  Rc5 {[%clk 0:00:52]} 77. Rf6+ {[%clk 0:00:21]}  Kg7 {[%clk 0:00:52]} 78. Rxf5 {[%clk 0:00:22]}  Rc3 {[%clk 0:00:52]} 79. g4 {[%clk 0:00:23]}  Rc1 {[%clk 0:00:52]} 80. Ra5 {[%clk 0:00:23]}  Rc7 {[%clk 0:00:51]} 81. f5 {[%clk 0:00:22]}  Kh7 {[%clk 0:00:51]} 82. Ra6 {[%clk 0:00:23]}  Rb7 {[%clk 0:00:50]} 83. Kf6 {[%clk 0:00:21]}  Rc7 {[%clk 0:00:45]} 84. g5 {[%clk 0:00:21]}  Rc8 {[%clk 0:00:45]} 85. Ra7+ {[%clk 0:00:21]}  Kg8 {[%clk 0:00:45]} 86. Kg6 {[%clk 0:00:21]}  Kh8 {[%clk 0:00:45]} 87. f6 {[%clk 0:00:21]}  Rg8+ {[%clk 0:00:44]} 88. Kh6 {[%clk 0:00:20]}  Rb8 {[%clk 0:00:44]} 89. Rh7+ {[%clk 0:00:20]}  Kg8 {[%clk 0:00:44]} 90. f7+ {[%clk 0:00:21]}  Kf8 {[%clk 0:00:45]} 91. Rh8+ {[%clk 0:00:22]}  Ke7 {[%clk 0:00:45]} 92. Rxb8 {[%clk 0:00:22]}  Kxf7 {[%clk 0:00:41]} 93. g6+ {[%clk 0:00:22]} 1-0


[Site "https://www.chess.com"]

[Event "Titled Tuesday Blitz July 11 Early 2023"]
[White "Romero Arzuaga, Yudel"]
[Black "Matyukov, Petr"]
[WhiteFideId "3521010"]
[BlackFideId "4103688"]
[WhiteElo "2309"]
[BlackElo "2489"]
[Result "1-0"]
[Round "4"]
[TimeControl "180+2"]
[Date "2023.07.11"]
[WhiteClock "0:00:50"]
[BlackClock "0:00:00"]
[Board "159"]

1. d4 {[%clk 0:03:00]}  Nf6 {[%clk 0:02:59]} 2. Nf3 {[%clk 0:03:01]}  e6 {[%clk 0:02:59]} 3. Bf4 {[%clk 0:03:00]}  Be7 {[%clk 0:02:59]} 4. e3 {[%clk 0:03:00]}  c5 {[%clk 0:03:00]} 5. Nbd2 {[%clk 0:03:01]}  Nc6 {[%clk 0:02:59]} 6. c3 {[%clk 0:03:01]}  b6 {[%clk 0:03:00]} 7. Bd3 {[%clk 0:03:02]}  O-O {[%clk 0:02:59]} 8. Qe2 {[%clk 0:03:01]}  Bb7 {[%clk 0:02:59]} 9. O-O {[%clk 0:02:59]}  d6 {[%clk 0:02:58]} 10. h3 {[%clk 0:02:59]}  Re8 {[%clk 0:02:58]} 11. Bh2 {[%clk 0:03:00]}  Rc8 {[%clk 0:02:56]} 12. Rad1 {[%clk 0:02:59]}  Qc7 {[%clk 0:02:56]} 13. Rfe1 {[%clk 0:02:58]}  a6 {[%clk 0:02:49]} 14. Bxa6 {[%clk 0:02:45]}  Bxa6 {[%clk 0:02:50]} 15. Qxa6 {[%clk 0:02:45]}  Ra8 {[%clk 0:02:50]} 16. Qc4 {[%clk 0:02:45]}  Qa7 {[%clk 0:02:30]} 17. a3 {[%clk 0:02:42]}  Na5 {[%clk 0:02:22]} 18. Qe2 {[%clk 0:02:39]}  Rec8 {[%clk 0:02:18]} 19. e4 {[%clk 0:02:38]}  b5 {[%clk 0:02:07]} 20. e5 {[%clk 0:02:35]}  dxe5 {[%clk 0:02:06]} 21. dxe5 {[%clk 0:02:34]}  Nd5 {[%clk 0:02:06]} 22. Ne4 {[%clk 0:02:34]}  Nc4 {[%clk 0:02:02]} 23. Nd6 {[%clk 0:02:18]}  Bxd6 {[%clk 0:01:49]} 24. exd6 {[%clk 0:02:18]}  Rd8 {[%clk 0:01:49]} 25. Bg3 {[%clk 0:02:12]}  Nxd6 {[%clk 0:01:41]} 26. Rxd5 {[%clk 0:02:10]}  exd5 {[%clk 0:01:32]} 27. Bxd6 {[%clk 0:02:10]}  h6 {[%clk 0:01:17]} 28. Bg3 {[%clk 0:02:09]}  d4 {[%clk 0:01:15]} 29. cxd4 {[%clk 0:02:06]}  cxd4 {[%clk 0:01:15]} 30. Rd1 {[%clk 0:02:03]}  Rac8 {[%clk 0:01:14]} 31. Qe4 {[%clk 0:01:59]}  Rc4 {[%clk 0:00:59]} 32. Ne5 {[%clk 0:01:50]}  Qe7 {[%clk 0:00:36]} 33. f3 {[%clk 0:01:39]}  Qa7 {[%clk 0:00:09]} 34. Nxc4 {[%clk 0:01:23]}  bxc4 {[%clk 0:00:10]} 35. Bf2 {[%clk 0:01:23]}  Qb8 {[%clk 0:00:07]} 36. Rxd4 {[%clk 0:01:20]}  Re8 {[%clk 0:00:08]} 37. Qf4 {[%clk 0:01:15]}  Qxb2 {[%clk 0:00:08]} 38. Rd7 {[%clk 0:01:12]}  Qb1+ {[%clk 0:00:03]} 39. Kh2 {[%clk 0:01:12]}  Rf8 {[%clk 0:00:03]} 40. Bc5 {[%clk 0:01:10]}  Qb5 {[%clk 0:00:00]} 41. Rc7 {[%clk 0:00:50]} 1-0


[Site "https://www.chess.com"]

[Event "Titled Tuesday Blitz July 11 Early 2023"]
[White "MunichMouse"]
[Black "mjbacojo"]
[WhiteElo "2302"]
[BlackElo "2484"]
[Result "1-0"]
[Round "4"]
[TimeControl "180+2"]
[Date "2023.07.11"]
[WhiteClock "0:00:16"]
[BlackClock "0:01:00"]
[Board "161"]

1. d4 {[%clk 0:03:00]}  Nf6 {[%clk 0:03:00]} 2. c4 {[%clk 0:03:00]}  e6 {[%clk 0:02:59]} 3. Nf3 {[%clk 0:03:00]}  c5 {[%clk 0:02:58]} 4. g3 {[%clk 0:02:56]}  b6 {[%clk 0:02:51]} 5. Bg2 {[%clk 0:02:54]}  Bb7 {[%clk 0:02:52]} 6. d5 {[%clk 0:02:53]}  exd5 {[%clk 0:02:52]} 7. Nh4 {[%clk 0:02:53]}  g6 {[%clk 0:02:47]} 8. Nc3 {[%clk 0:02:52]}  Bg7 {[%clk 0:02:46]} 9. O-O {[%clk 0:02:53]}  O-O {[%clk 0:02:46]} 10. Bg5 {[%clk 0:02:28]}  Na6 {[%clk 0:02:43]} 11. Nxd5 {[%clk 0:02:23]}  Rb8 {[%clk 0:02:32]} 12. Nxf6+ {[%clk 0:02:19]}  Bxf6 {[%clk 0:02:33]} 13. Bxb7 {[%clk 0:02:18]}  Rxb7 {[%clk 0:02:30]} 14. Bxf6 {[%clk 0:02:16]}  Qxf6 {[%clk 0:02:31]} 15. b3 {[%clk 0:02:07]}  Nb4 {[%clk 0:02:26]} 16. a3 {[%clk 0:02:03]}  Nc6 {[%clk 0:02:25]} 17. Qd5 {[%clk 0:02:04]}  Rbb8 {[%clk 0:02:11]} 18. Nf3 {[%clk 0:02:04]}  Qe6 {[%clk 0:02:08]} 19. e4 {[%clk 0:01:44]}  Qxd5 {[%clk 0:01:59]} 20. exd5 {[%clk 0:01:44]}  Na5 {[%clk 0:02:00]} 21. Rab1 {[%clk 0:01:32]}  Rfe8 {[%clk 0:01:59]} 22. Rfe1 {[%clk 0:01:32]}  Rxe1+ {[%clk 0:01:54]} 23. Nxe1 {[%clk 0:01:33]}  b5 {[%clk 0:01:55]} 24. cxb5 {[%clk 0:01:17]}  Rxb5 {[%clk 0:01:56]} 25. b4 {[%clk 0:01:06]}  Nc4 {[%clk 0:01:51]} 26. Rc1 {[%clk 0:00:57]}  cxb4 {[%clk 0:01:50]} 27. Rxc4 {[%clk 0:00:55]}  bxa3 {[%clk 0:01:51]} 28. Ra4 {[%clk 0:00:49]}  Rxd5 {[%clk 0:01:42]} 29. Rxa3 {[%clk 0:00:46]}  a5 {[%clk 0:01:40]} 30. Nd3 {[%clk 0:00:44]}  Kf8 {[%clk 0:01:39]} 31. Kf1 {[%clk 0:00:44]}  Ke7 {[%clk 0:01:38]} 32. Ke2 {[%clk 0:00:45]}  Kd6 {[%clk 0:01:39]} 33. f4 {[%clk 0:00:39]}  Kc6 {[%clk 0:01:38]} 34. Rc3+ {[%clk 0:00:37]}  Kb5 {[%clk 0:01:37]} 35. Rc7 {[%clk 0:00:33]}  a4 {[%clk 0:01:31]} 36. Ra7 {[%clk 0:00:32]}  f6 {[%clk 0:01:23]} 37. Kd2 {[%clk 0:00:29]}  Kc4 {[%clk 0:01:19]} 38. Rxa4+ {[%clk 0:00:28]}  Kb3 {[%clk 0:01:20]} 39. Rb4+ {[%clk 0:00:28]}  Ka3 {[%clk 0:01:20]} 40. Rb7 {[%clk 0:00:28]}  h5 {[%clk 0:01:19]} 41. Kc3 {[%clk 0:00:29]}  Ka4 {[%clk 0:01:18]} 42. Kc4 {[%clk 0:00:26]}  Ra5 {[%clk 0:01:15]} 43. Rb3 {[%clk 0:00:16]}  d5+ {[%clk 0:01:12]} 44. Kc3 {[%clk 0:00:16]}  Ra8 {[%clk 0:01:01]} 45. Nc5+ {[%clk 0:00:15]}  Ka5 {[%clk 0:01:00]} 46. Ra3+ {[%clk 0:00:16]} 1-0


[Site "https://www.chess.com"]

[Event "Titled Tuesday Blitz July 11 Early 2023"]
[White "Shishkov, Andrei"]
[Black "SicilianPanzer"]
[WhiteFideId "4500563"]
[WhiteElo "2479"]
[BlackElo "2217"]
[Result "1-0"]
[Round "4"]
[TimeControl "180+2"]
[Date "2023.07.11"]
[WhiteClock "0:01:04"]
[BlackClock "0:00:00"]
[Board "165"]

1. d4 {[%clk 0:03:00]}  Nf6 {[%clk 0:02:59]} 2. c4 {[%clk 0:03:01]}  e6 {[%clk 0:02:59]} 3. Nc3 {[%clk 0:03:00]}  c5 {[%clk 0:02:58]} 4. d5 {[%clk 0:03:00]}  exd5 {[%clk 0:02:58]} 5. cxd5 {[%clk 0:03:00]}  d6 {[%clk 0:02:58]} 6. e4 {[%clk 0:03:01]}  g6 {[%clk 0:02:58]} 7. h3 {[%clk 0:03:02]}  Bg7 {[%clk 0:02:57]} 8. Nf3 {[%clk 0:03:02]}  O-O {[%clk 0:02:57]} 9. Bd3 {[%clk 0:03:03]}  Na6 {[%clk 0:02:49]} 10. O-O {[%clk 0:03:02]}  Nc7 {[%clk 0:02:48]} 11. Re1 {[%clk 0:03:01]}  b6 {[%clk 0:02:46]} 12. Bf4 {[%clk 0:02:59]}  Ba6 {[%clk 0:02:38]} 13. Bxa6 {[%clk 0:02:52]}  Nxa6 {[%clk 0:02:35]} 14. Qa4 {[%clk 0:02:52]}  Nb4 {[%clk 0:02:24]} 15. Rad1 {[%clk 0:02:52]}  Qe8 {[%clk 0:01:15]} 16. Qxe8 {[%clk 0:02:22]}  Nxe8 {[%clk 0:01:14]} 17. a3 {[%clk 0:02:15]}  Nc2 {[%clk 0:01:11]} 18. Re2 {[%clk 0:02:15]}  Nxa3 {[%clk 0:00:59]} 19. e5 {[%clk 0:02:07]}  dxe5 {[%clk 0:00:55]} 20. Nxe5 {[%clk 0:02:02]}  Bxe5 {[%clk 0:00:45]} 21. Bxe5 {[%clk 0:02:00]}  Nc4 {[%clk 0:00:44]} 22. d6 {[%clk 0:01:57]}  Rd8 {[%clk 0:00:28]} 23. d7 {[%clk 0:01:35]}  Nxe5 {[%clk 0:00:12]} 24. Rxe5 {[%clk 0:01:33]}  Nf6 {[%clk 0:00:11]} 25. Re7 {[%clk 0:01:30]}  Kg7 {[%clk 0:00:11]} 26. g4 {[%clk 0:01:18]}  Ng8 {[%clk 0:00:10]} 27. Re5 {[%clk 0:01:17]}  f6 {[%clk 0:00:07]} 28. Red5 {[%clk 0:01:14]}  Rf7 {[%clk 0:00:06]} 29. Rd6 {[%clk 0:01:12]}  Ne7 {[%clk 0:00:04]} 30. f4 {[%clk 0:01:05]}  f5 {[%clk 0:00:00]} 31. g5 {[%clk 0:01:04]} 1-0


[Site "https://www.chess.com"]